{"text_format":"3","workbook":"xlsx","n_sheets":13,"sheets":["Januari","Februari","Mac","April","Mei","Jun","Julai","Ogos","September","Oktober","November","Disember","Ringkasan Tarikh Mula - Kini "],"not_rendered":{"charts":1,"defined_names":13},"read":"whole","date_system":"1900"}

{"sheet":"Januari","index":0,"n_rows":9,"n_cols":14,"rows_kept":9,"merged":[[3,0,4,0],[6,0,7,0]]}
["JANUARI"]
["Jualan Dalam Talian",null,"ID Lelong","Perihalan item","Harga belian","Harga jualan","Yuran dalam talian","Yuran PayPal","Yuran kad kredit","Caj pengiriman","Yuran pengiriman","Untung/rugi jualan","Untung/rugi pengiriman","Jumlah untung/rugi"]
["Tahun",null,"TS001","Item 1",{"v":5,"d":"RM5.00"},{"v":4,"d":"RM4.00"},{"v":2,"d":"RM2.00"},{"v":1.5,"d":"RM1.50"},{"v":0,"d":"RM0.00"},{"v":4,"d":"RM4.00"},{"v":2,"d":"RM2.00"},{"$f":"IFERROR(JanuarySales[Harga jualan]-(JanuarySales[Harga belian]+JanuarySales[Yuran dalam talian]+JanuarySales[Yuran PayPal]+JanuarySales[Yuran kad kredit]),\"\")","v":{"v":-4.5,"d":"(RM4.50)"}},{"$f":"JanuarySales[Caj pengiriman]-JanuarySales[Yuran pengiriman]","v":{"v":2,"d":"RM2.00"}},{"$f":"JanuarySales[Untung/rugi jualan]+JanuarySales[Untung/rugi pengiriman]","v":{"v":-2.5,"d":"(RM2.50)"}}]
[2012,null,"TP004","Item 2",{"v":2,"d":"RM2.00"},{"v":30,"d":"RM30.00"},{"v":0.5,"d":"RM0.50"},{"v":0.5,"d":"RM0.50"},null,{"v":4,"d":"RM4.00"},{"v":5.5,"d":"RM5.50"},{"$f":"IFERROR(JanuarySales[Harga jualan]-(JanuarySales[Harga belian]+JanuarySales[Yuran dalam talian]+JanuarySales[Yuran PayPal]+JanuarySales[Yuran kad kredit]),\"\")","v":{"v":27,"d":"RM27.00"}},{"$f":"JanuarySales[Caj pengiriman]-JanuarySales[Yuran pengiriman]","v":{"v":-1.5,"d":"(RM1.50)"}},{"$f":"JanuarySales[Untung/rugi jualan]+JanuarySales[Untung/rugi pengiriman]","v":{"v":25.5,"d":"RM25.50"}}]
[null,null,"RS99","Item 3",{"v":17,"d":"RM17.00"},{"v":23,"d":"RM23.00"},{"v":2,"d":"RM2.00"},null,{"v":2,"d":"RM2.00"},{"v":3,"d":"RM3.00"},{"v":2,"d":"RM2.00"},{"$f":"IFERROR(JanuarySales[Harga jualan]-(JanuarySales[Harga belian]+JanuarySales[Yuran dalam talian]+JanuarySales[Yuran PayPal]+JanuarySales[Yuran kad kredit]),\"\")","v":{"v":2,"d":"RM2.00"}},{"$f":"JanuarySales[Caj pengiriman]-JanuarySales[Yuran pengiriman]","v":{"v":1,"d":"RM1.00"}},{"$f":"JanuarySales[Untung/rugi jualan]+JanuarySales[Untung/rugi pengiriman]","v":{"v":3,"d":"RM3.00"}}]
["Jumlah Untung/Rugi",null,"ST001","Item 4",{"v":120,"d":"RM120.00"},{"v":180,"d":"RM180.00"},{"v":2,"d":"RM2.00"},{"v":1.5,"d":"RM1.50"},null,{"v":3,"d":"RM3.00"},{"v":2,"d":"RM2.00"},{"$f":"IFERROR(JanuarySales[Harga jualan]-(JanuarySales[Harga belian]+JanuarySales[Yuran dalam talian]+JanuarySales[Yuran PayPal]+JanuarySales[Yuran kad kredit]),\"\")","v":{"v":56.5,"d":"RM56.50"}},{"$f":"JanuarySales[Caj pengiriman]-JanuarySales[Yuran pengiriman]","v":{"v":1,"d":"RM1.00"}},{"$f":"JanuarySales[Untung/rugi jualan]+JanuarySales[Untung/rugi pengiriman]","v":{"v":57.5,"d":"RM57.50"}}]
[{"$f":"JanuarySales[[#Totals],[Jumlah untung/rugi]]","v":{"v":89,"d":"RM89.00"}},null,"ST001","Item 5",{"v":10,"d":"RM10.00"},{"v":12,"d":"RM12.00"},{"v":2,"d":"RM2.00"},{"v":1.5,"d":"RM1.50"},null,{"v":14,"d":"RM14.00"},{"v":7,"d":"RM7.00"},{"$f":"IFERROR(JanuarySales[Harga jualan]-(JanuarySales[Harga belian]+JanuarySales[Yuran dalam talian]+JanuarySales[Yuran PayPal]+JanuarySales[Yuran kad kredit]),\"\")","v":{"v":-1.5,"d":"(RM1.50)"}},{"$f":"JanuarySales[Caj pengiriman]-JanuarySales[Yuran pengiriman]","v":{"v":7,"d":"RM7.00"}},{"$f":"JanuarySales[Untung/rugi jualan]+JanuarySales[Untung/rugi pengiriman]","v":{"v":5.5,"d":"RM5.50"}}]
[null,null,"  Jumlah",{"$f":"\"Item Dijual: \"&SUBTOTAL(103,JanuarySales[Perihalan item])","v":"Item Dijual: 5"},{"$f":"SUBTOTAL(109,JanuarySales[Harga belian])","v":{"v":154,"d":"RM154.00"}},{"$f":"SUBTOTAL(109,JanuarySales[Harga jualan])","v":{"v":249,"d":"RM249.00"}},{"$f":"SUBTOTAL(109,JanuarySales[Yuran dalam talian])","v":{"v":8.5,"d":"RM8.50"}},{"$f":"SUBTOTAL(109,JanuarySales[Yuran PayPal])","v":{"v":5,"d":"RM5.00"}},{"$f":"SUBTOTAL(109,JanuarySales[Yuran kad kredit])","v":{"v":2,"d":"RM2.00"}},{"$f":"SUBTOTAL(109,JanuarySales[Caj pengiriman])","v":{"v":28,"d":"RM28.00"}},{"$f":"SUBTOTAL(109,JanuarySales[Yuran pengiriman])","v":{"v":18.5,"d":"RM18.50"}},{"$f":"SUBTOTAL(109,JanuarySales[Untung/rugi jualan])","v":{"v":79.5,"d":"RM79.50"}},{"$f":"SUBTOTAL(109,JanuarySales[Untung/rugi pengiriman])","v":{"v":9.5,"d":"RM9.50"}},{"$f":"SUBTOTAL(109,JanuarySales[Jumlah untung/rugi])","v":{"v":89,"d":"RM89.00"}}]
["Arah aliran untung/rugi"]

{"sheet":"Februari","index":1,"n_rows":9,"n_cols":14,"rows_kept":9,"merged":[[3,0,4,0],[6,0,7,0]]}
["FEBRUARI"]
["Jualan Dalam Talian",null,"ID Lelong","Perihalan item","Harga belian","Harga jualan","Yuran dalam talian","Yuran PayPal","Yuran kad kredit","Caj pengiriman","Yuran pengiriman","Untung/rugi jualan","Untung/rugi pengiriman","Jumlah untung/rugi"]
["Tahun",null,"TS020","Item 1",{"v":10,"d":"RM10.00"},{"v":175,"d":"RM175.00"},{"v":3,"d":"RM3.00"},{"v":1.5,"d":"RM1.50"},{"v":0,"d":"RM0.00"},{"v":7,"d":"RM7.00"},{"v":5,"d":"RM5.00"},{"$f":"IFERROR(FebruarySales[Harga jualan]-(FebruarySales[Harga belian]+FebruarySales[Yuran dalam talian]+FebruarySales[Yuran PayPal]+FebruarySales[Yuran kad kredit]),\"\")","v":{"v":160.5,"d":"RM160.50"}},{"$f":"FebruarySales[Caj pengiriman]-FebruarySales[Yuran pengiriman]","v":{"v":2,"d":"RM2.00"}},{"$f":"FebruarySales[Untung/rugi jualan]+FebruarySales[Untung/rugi pengiriman]","v":{"v":162.5,"d":"RM162.50"}}]
[{"$f":"SalesYear","v":2012},null,"TS021","Item 2",{"v":32,"d":"RM32.00"},{"v":100,"d":"RM100.00"},{"v":3,"d":"RM3.00"},null,{"v":3.2,"d":"RM3.20"},{"v":20,"d":"RM20.00"},{"v":13,"d":"RM13.00"},{"$f":"IFERROR(FebruarySales[Harga jualan]-(FebruarySales[Harga belian]+FebruarySales[Yuran dalam talian]+FebruarySales[Yuran PayPal]+FebruarySales[Yuran kad kredit]),\"\")","v":{"v":61.8,"d":"RM61.80"}},{"$f":"FebruarySales[Caj pengiriman]-FebruarySales[Yuran pengiriman]","v":{"v":7,"d":"RM7.00"}},{"$f":"FebruarySales[Untung/rugi jualan]+FebruarySales[Untung/rugi pengiriman]","v":{"v":68.8,"d":"RM68.80"}}]
[null,null,"TS022","Item 3",{"v":3,"d":"RM3.00"},{"v":7,"d":"RM7.00"},{"v":2,"d":"RM2.00"},null,{"v":2,"d":"RM2.00"},{"v":0.5,"d":"RM0.50"},{"v":1.2,"d":"RM1.20"},{"$f":"IFERROR(FebruarySales[Harga jualan]-(FebruarySales[Harga belian]+FebruarySales[Yuran dalam talian]+FebruarySales[Yuran PayPal]+FebruarySales[Yuran kad kredit]),\"\")","v":{"v":0,"d":"RM0.00"}},{"$f":"FebruarySales[Caj pengiriman]-FebruarySales[Yuran pengiriman]","v":{"v":-0.7,"d":"(RM0.70)"}},{"$f":"FebruarySales[Untung/rugi jualan]+FebruarySales[Untung/rugi pengiriman]","v":{"v":-0.7,"d":"(RM0.70)"}}]
["Jumlah Untung/Rugi",null,"TS023","Item 4",{"v":22,"d":"RM22.00"},{"v":18,"d":"RM18.00"},{"v":3,"d":"RM3.00"},{"v":1.5,"d":"RM1.50"},null,{"v":7,"d":"RM7.00"},{"v":10,"d":"RM10.00"},{"$f":"IFERROR(FebruarySales[Harga jualan]-(FebruarySales[Harga belian]+FebruarySales[Yuran dalam talian]+FebruarySales[Yuran PayPal]+FebruarySales[Yuran kad kredit]),\"\")","v":{"v":-8.5,"d":"(RM8.50)"}},{"$f":"FebruarySales[Caj pengiriman]-FebruarySales[Yuran pengiriman]","v":{"v":-3,"d":"(RM3.00)"}},{"$f":"FebruarySales[Untung/rugi jualan]+FebruarySales[Untung/rugi pengiriman]","v":{"v":-11.5,"d":"(RM11.50)"}}]
[{"$f":"FebruarySales[[#Totals],[Jumlah untung/rugi]]","v":{"v":224.60000000000002,"d":"$224.60"}},null,"TS024","Item 5",{"v":10,"d":"RM10.00"},{"v":12,"d":"RM12.00"},{"v":2,"d":"RM2.00"},{"v":1.5,"d":"RM1.50"},null,{"v":14,"d":"RM14.00"},{"v":7,"d":"RM7.00"},{"$f":"IFERROR(FebruarySales[Harga jualan]-(FebruarySales[Harga belian]+FebruarySales[Yuran dalam talian]+FebruarySales[Yuran PayPal]+FebruarySales[Yuran kad kredit]),\"\")","v":{"v":-1.5,"d":"(RM1.50)"}},{"$f":"FebruarySales[Caj pengiriman]-FebruarySales[Yuran pengiriman]","v":{"v":7,"d":"RM7.00"}},{"$f":"FebruarySales[Untung/rugi jualan]+FebruarySales[Untung/rugi pengiriman]","v":{"v":5.5,"d":"RM5.50"}}]
[null,null,"  Jumlah",{"$f":"\"Item Dijual: \"&SUBTOTAL(103,FebruarySales[Perihalan item])","v":"Item Dijual: 5"},{"$f":"SUBTOTAL(109,FebruarySales[Harga belian])","v":{"v":77,"d":"RM77.00"}},{"$f":"SUBTOTAL(109,FebruarySales[Harga jualan])","v":{"v":312,"d":"RM312.00"}},{"$f":"SUBTOTAL(109,FebruarySales[Yuran dalam talian])","v":{"v":13,"d":"RM13.00"}},{"$f":"SUBTOTAL(109,FebruarySales[Yuran PayPal])","v":{"v":4.5,"d":"RM4.50"}},{"$f":"SUBTOTAL(109,FebruarySales[Yuran kad kredit])","v":{"v":5.2,"d":"RM5.20"}},{"$f":"SUBTOTAL(109,FebruarySales[Caj pengiriman])","v":{"v":48.5,"d":"RM48.50"}},{"$f":"SUBTOTAL(109,FebruarySales[Yuran pengiriman])","v":{"v":36.2,"d":"RM36.20"}},{"$f":"SUBTOTAL(109,FebruarySales[Untung/rugi jualan])","v":{"v":212.3,"d":"RM212.30"}},{"$f":"SUBTOTAL(109,FebruarySales[Untung/rugi pengiriman])","v":{"v":12.3,"d":"RM12.30"}},{"$f":"SUBTOTAL(109,FebruarySales[Jumlah untung/rugi])","v":{"v":224.60000000000002,"d":"RM224.60"}}]
["Arah aliran untung/rugi"]

{"sheet":"Mac","index":2,"n_rows":9,"n_cols":14,"rows_kept":9,"merged":[[3,0,4,0],[6,0,7,0]]}
["MAC"]
["Jualan Dalam Talian",null,"ID Lelong","Perihalan item","Harga belian","Harga jualan","Yuran dalam talian","Yuran PayPal","Yuran kad kredit","Caj pengiriman","Yuran pengiriman","Untung/rugi jualan","Untung/rugi pengiriman","Jumlah untung/rugi"]
["Tahun",{"$nulls":10},{"$f":"IFERROR(MarchSales[Harga jualan]-(MarchSales[Harga belian]+MarchSales[Yuran dalam talian]+MarchSales[Yuran PayPal]+MarchSales[Yuran kad kredit]),\"\")","v":{"v":0,"d":"RM0.00"}},{"$f":"MarchSales[Caj pengiriman]-MarchSales[Yuran pengiriman]","v":{"v":0,"d":"RM0.00"}},{"$f":"MarchSales[Untung/rugi jualan]+MarchSales[Untung/rugi pengiriman]","v":{"v":0,"d":"RM0.00"}}]
[{"$f":"SalesYear","v":2012},{"$nulls":10},{"$f":"IFERROR(MarchSales[Harga jualan]-(MarchSales[Harga belian]+MarchSales[Yuran dalam talian]+MarchSales[Yuran PayPal]+MarchSales[Yuran kad kredit]),\"\")","v":{"v":0,"d":"RM0.00"}},{"$f":"MarchSales[Caj pengiriman]-MarchSales[Yuran pengiriman]","v":{"v":0,"d":"RM0.00"}},{"$f":"MarchSales[Untung/rugi jualan]+MarchSales[Untung/rugi pengiriman]","v":{"v":0,"d":"RM0.00"}}]
[{"$nulls":11},{"$f":"IFERROR(MarchSales[Harga jualan]-(MarchSales[Harga belian]+MarchSales[Yuran dalam talian]+MarchSales[Yuran PayPal]+MarchSales[Yuran kad kredit]),\"\")","v":{"v":0,"d":"RM0.00"}},{"$f":"MarchSales[Caj pengiriman]-MarchSales[Yuran pengiriman]","v":{"v":0,"d":"RM0.00"}},{"$f":"MarchSales[Untung/rugi jualan]+MarchSales[Untung/rugi pengiriman]","v":{"v":0,"d":"RM0.00"}}]
["Jumlah Untung/Rugi",{"$nulls":10},{"$f":"IFERROR(MarchSales[Harga jualan]-(MarchSales[Harga belian]+MarchSales[Yuran dalam talian]+MarchSales[Yuran PayPal]+MarchSales[Yuran kad kredit]),\"\")","v":{"v":0,"d":"RM0.00"}},{"$f":"MarchSales[Caj pengiriman]-MarchSales[Yuran pengiriman]","v":{"v":0,"d":"RM0.00"}},{"$f":"MarchSales[Untung/rugi jualan]+MarchSales[Untung/rugi pengiriman]","v":{"v":0,"d":"RM0.00"}}]
[{"$f":"MarchSales[[#Totals],[Jumlah untung/rugi]]","v":{"v":0,"d":"$0.00"}},{"$nulls":10},{"$f":"IFERROR(MarchSales[Harga jualan]-(MarchSales[Harga belian]+MarchSales[Yuran dalam talian]+MarchSales[Yuran PayPal]+MarchSales[Yuran kad kredit]),\"\")","v":{"v":0,"d":"RM0.00"}},{"$f":"MarchSales[Caj pengiriman]-MarchSales[Yuran pengiriman]","v":{"v":0,"d":"RM0.00"}},{"$f":"MarchSales[Untung/rugi jualan]+MarchSales[Untung/rugi pengiriman]","v":{"v":0,"d":"RM0.00"}}]
[null,null,"  Jumlah",{"$f":"\"Item Dijual: \"&SUBTOTAL(103,MarchSales[Perihalan item])","v":"Item Dijual: 0"},{"$f":"SUBTOTAL(109,MarchSales[Harga belian])","v":{"v":0,"d":"RM0.00"}},{"$f":"SUBTOTAL(109,MarchSales[Harga jualan])","v":{"v":0,"d":"RM0.00"}},{"$f":"SUBTOTAL(109,MarchSales[Yuran dalam talian])","v":{"v":0,"d":"RM0.00"}},{"$f":"SUBTOTAL(109,MarchSales[Yuran PayPal])","v":{"v":0,"d":"RM0.00"}},{"$f":"SUBTOTAL(109,MarchSales[Yuran kad kredit])","v":{"v":0,"d":"RM0.00"}},{"$f":"SUBTOTAL(109,MarchSales[Caj pengiriman])","v":{"v":0,"d":"RM0.00"}},{"$f":"SUBTOTAL(109,MarchSales[Yuran pengiriman])","v":{"v":0,"d":"RM0.00"}},{"$f":"SUBTOTAL(109,MarchSales[Untung/rugi jualan])","v":{"v":0,"d":"RM0.00"}},{"$f":"SUBTOTAL(109,MarchSales[Untung/rugi pengiriman])","v":{"v":0,"d":"RM0.00"}},{"$f":"SUBTOTAL(109,MarchSales[Jumlah untung/rugi])","v":{"v":0,"d":"RM0.00"}}]
["Arah aliran untung/rugi"]

{"sheet":"April","index":3,"n_rows":9,"n_cols":14,"rows_kept":9,"merged":[[3,0,4,0],[6,0,7,0]]}
["APRIL"]
["Jualan Dalam Talian",null,"ID Lelong","Perihalan item","Harga belian","Harga jualan","Yuran dalam talian","Yuran PayPal","Yuran kad kredit","Caj pengiriman","Yuran pengiriman","Untung/rugi jualan","Untung/rugi pengiriman","Jumlah untung/rugi"]
["Tahun",{"$nulls":11},{"$f":"AprilSales[Caj pengiriman]-AprilSales[Yuran pengiriman]","v":{"v":0,"d":"RM0.00"}},{"$f":"AprilSales[Untung/rugi jualan]+AprilSales[Untung/rugi pengiriman]","v":{"v":0,"d":"RM0.00"}}]
[{"$f":"SalesYear","v":2012},{"$nulls":11},{"$f":"AprilSales[Caj pengiriman]-AprilSales[Yuran pengiriman]","v":{"v":0,"d":"RM0.00"}},{"$f":"AprilSales[Untung/rugi jualan]+AprilSales[Untung/rugi pengiriman]","v":{"v":0,"d":"RM0.00"}}]
[{"$nulls":12},{"$f":"AprilSales[Caj pengiriman]-AprilSales[Yuran pengiriman]","v":{"v":0,"d":"RM0.00"}},{"$f":"AprilSales[Untung/rugi jualan]+AprilSales[Untung/rugi pengiriman]","v":{"v":0,"d":"RM0.00"}}]
["Jumlah Untung/Rugi",{"$nulls":11},{"$f":"AprilSales[Caj pengiriman]-AprilSales[Yuran pengiriman]","v":{"v":0,"d":"RM0.00"}},{"$f":"AprilSales[Untung/rugi jualan]+AprilSales[Untung/rugi pengiriman]","v":{"v":0,"d":"RM0.00"}}]
[{"$f":"AprilSales[[#Totals],[Jumlah untung/rugi]]","v":{"v":0,"d":"$0.00"}},{"$nulls":11},{"$f":"AprilSales[Caj pengiriman]-AprilSales[Yuran pengiriman]","v":{"v":0,"d":"RM0.00"}},{"$f":"AprilSales[Untung/rugi jualan]+AprilSales[Untung/rugi pengiriman]","v":{"v":0,"d":"RM0.00"}}]
[null,null,"  Jumlah",{"$f":"\"Item Dijual: \"&SUBTOTAL(103,AprilSales[Perihalan item])","v":"Item Dijual: 0"},{"$f":"SUBTOTAL(109,AprilSales[Harga belian])","v":{"v":0,"d":"RM0.00"}},{"$f":"SUBTOTAL(109,AprilSales[Harga jualan])","v":{"v":0,"d":"RM0.00"}},{"$f":"SUBTOTAL(109,AprilSales[Yuran dalam talian])","v":{"v":0,"d":"RM0.00"}},{"$f":"SUBTOTAL(109,AprilSales[Yuran PayPal])","v":{"v":0,"d":"RM0.00"}},{"$f":"SUBTOTAL(109,AprilSales[Yuran kad kredit])","v":{"v":0,"d":"RM0.00"}},{"$f":"SUBTOTAL(109,AprilSales[Caj pengiriman])","v":{"v":0,"d":"RM0.00"}},{"$f":"SUBTOTAL(109,AprilSales[Yuran pengiriman])","v":{"v":0,"d":"RM0.00"}},{"$f":"SUBTOTAL(109,AprilSales[Untung/rugi jualan])","v":{"v":0,"d":"RM0.00"}},{"$f":"SUBTOTAL(109,AprilSales[Untung/rugi pengiriman])","v":{"v":0,"d":"RM0.00"}},{"$f":"SUBTOTAL(109,AprilSales[Jumlah untung/rugi])","v":{"v":0,"d":"RM0.00"}}]
["Arah aliran untung/rugi"]

{"sheet":"Mei","index":4,"n_rows":9,"n_cols":14,"rows_kept":9,"merged":[[3,0,4,0],[6,0,7,0]]}
["MEI"]
["Jualan Dalam Talian",null,"ID Lelong","Perihalan item","Harga belian","Harga jualan","Yuran dalam talian","Yuran PayPal","Yuran kad kredit","Caj pengiriman","Yuran pengiriman","Untung/rugi jualan","Untung/rugi pengiriman","Jumlah untung/rugi"]
["Tahun",{"$nulls":11},{"$f":"MaySales[Caj pengiriman]-MaySales[Yuran pengiriman]","v":{"v":0,"d":"RM0.00"}},{"$f":"MaySales[Untung/rugi jualan]+MaySales[Untung/rugi pengiriman]","v":{"v":0,"d":"RM0.00"}}]
[{"$f":"SalesYear","v":2012},{"$nulls":11},{"$f":"MaySales[Caj pengiriman]-MaySales[Yuran pengiriman]","v":{"v":0,"d":"RM0.00"}},{"$f":"MaySales[Untung/rugi jualan]+MaySales[Untung/rugi pengiriman]","v":{"v":0,"d":"RM0.00"}}]
[{"$nulls":12},{"$f":"MaySales[Caj pengiriman]-MaySales[Yuran pengiriman]","v":{"v":0,"d":"RM0.00"}},{"$f":"MaySales[Untung/rugi jualan]+MaySales[Untung/rugi pengiriman]","v":{"v":0,"d":"RM0.00"}}]
["Jumlah Untung/Rugi",{"$nulls":11},{"$f":"MaySales[Caj pengiriman]-MaySales[Yuran pengiriman]","v":{"v":0,"d":"RM0.00"}},{"$f":"MaySales[Untung/rugi jualan]+MaySales[Untung/rugi pengiriman]","v":{"v":0,"d":"RM0.00"}}]
[{"$f":"MaySales[[#Totals],[Jumlah untung/rugi]]","v":{"v":0,"d":"$0.00"}},{"$nulls":11},{"$f":"MaySales[Caj pengiriman]-MaySales[Yuran pengiriman]","v":{"v":0,"d":"RM0.00"}},{"$f":"MaySales[Untung/rugi jualan]+MaySales[Untung/rugi pengiriman]","v":{"v":0,"d":"RM0.00"}}]
[null,null,"  Jumlah",{"$f":"\"Item Dijual: \"&SUBTOTAL(103,MaySales[Perihalan item])","v":"Item Dijual: 0"},{"$f":"SUBTOTAL(109,MaySales[Harga belian])","v":{"v":0,"d":"RM0.00"}},{"$f":"SUBTOTAL(109,MaySales[Harga jualan])","v":{"v":0,"d":"RM0.00"}},{"$f":"SUBTOTAL(109,MaySales[Yuran dalam talian])","v":{"v":0,"d":"RM0.00"}},{"$f":"SUBTOTAL(109,MaySales[Yuran PayPal])","v":{"v":0,"d":"RM0.00"}},{"$f":"SUBTOTAL(109,MaySales[Yuran kad kredit])","v":{"v":0,"d":"RM0.00"}},{"$f":"SUBTOTAL(109,MaySales[Caj pengiriman])","v":{"v":0,"d":"RM0.00"}},{"$f":"SUBTOTAL(109,MaySales[Yuran pengiriman])","v":{"v":0,"d":"RM0.00"}},{"$f":"SUBTOTAL(109,MaySales[Untung/rugi jualan])","v":{"v":0,"d":"RM0.00"}},{"$f":"SUBTOTAL(109,MaySales[Untung/rugi pengiriman])","v":{"v":0,"d":"RM0.00"}},{"$f":"SUBTOTAL(109,MaySales[Jumlah untung/rugi])","v":{"v":0,"d":"RM0.00"}}]
["Arah aliran untung/rugi"]

{"sheet":"Jun","index":5,"n_rows":9,"n_cols":14,"rows_kept":9,"merged":[[3,0,4,0],[6,0,7,0]]}
["JUN"]
["Jualan Dalam Talian",null,"ID Lelong","Perihalan item","Harga belian","Harga jualan","Yuran dalam talian","Yuran PayPal","Yuran kad kredit","Caj pengiriman","Yuran pengiriman","Untung/rugi jualan","Untung/rugi pengiriman","Jumlah untung/rugi"]
["Tahun",{"$nulls":11},{"$f":"JuneSales[Caj pengiriman]-JuneSales[Yuran pengiriman]","v":{"v":0,"d":"RM0.00"}},{"$f":"JuneSales[Untung/rugi jualan]+JuneSales[Untung/rugi pengiriman]","v":{"v":0,"d":"RM0.00"}}]
[{"$f":"SalesYear","v":2012},{"$nulls":11},{"$f":"JuneSales[Caj pengiriman]-JuneSales[Yuran pengiriman]","v":{"v":0,"d":"RM0.00"}},{"$f":"JuneSales[Untung/rugi jualan]+JuneSales[Untung/rugi pengiriman]","v":{"v":0,"d":"RM0.00"}}]
[{"$nulls":12},{"$f":"JuneSales[Caj pengiriman]-JuneSales[Yuran pengiriman]","v":{"v":0,"d":"RM0.00"}},{"$f":"JuneSales[Untung/rugi jualan]+JuneSales[Untung/rugi pengiriman]","v":{"v":0,"d":"RM0.00"}}]
["Jumlah Untung/Rugi",{"$nulls":11},{"$f":"JuneSales[Caj pengiriman]-JuneSales[Yuran pengiriman]","v":{"v":0,"d":"RM0.00"}},{"$f":"JuneSales[Untung/rugi jualan]+JuneSales[Untung/rugi pengiriman]","v":{"v":0,"d":"RM0.00"}}]
[{"$f":"JuneSales[[#Totals],[Jumlah untung/rugi]]","v":{"v":0,"d":"$0.00"}},{"$nulls":11},{"$f":"JuneSales[Caj pengiriman]-JuneSales[Yuran pengiriman]","v":{"v":0,"d":"RM0.00"}},{"$f":"JuneSales[Untung/rugi jualan]+JuneSales[Untung/rugi pengiriman]","v":{"v":0,"d":"RM0.00"}}]
[null,null,"  Jumlah",{"$f":"\"Item Dijual: \"&SUBTOTAL(103,JuneSales[Perihalan item])","v":"Item Dijual: 0"},{"$f":"SUBTOTAL(109,JuneSales[Harga belian])","v":{"v":0,"d":"RM0.00"}},{"$f":"SUBTOTAL(109,JuneSales[Harga jualan])","v":{"v":0,"d":"RM0.00"}},{"$f":"SUBTOTAL(109,JuneSales[Yuran dalam talian])","v":{"v":0,"d":"RM0.00"}},{"$f":"SUBTOTAL(109,JuneSales[Yuran PayPal])","v":{"v":0,"d":"RM0.00"}},{"$f":"SUBTOTAL(109,JuneSales[Yuran kad kredit])","v":{"v":0,"d":"RM0.00"}},{"$f":"SUBTOTAL(109,JuneSales[Caj pengiriman])","v":{"v":0,"d":"RM0.00"}},{"$f":"SUBTOTAL(109,JuneSales[Yuran pengiriman])","v":{"v":0,"d":"RM0.00"}},{"$f":"SUBTOTAL(109,JuneSales[Untung/rugi jualan])","v":{"v":0,"d":"RM0.00"}},{"$f":"SUBTOTAL(109,JuneSales[Untung/rugi pengiriman])","v":{"v":0,"d":"RM0.00"}},{"$f":"SUBTOTAL(109,JuneSales[Jumlah untung/rugi])","v":{"v":0,"d":"RM0.00"}}]
["Arah aliran untung/rugi"]

{"sheet":"Julai","index":6,"n_rows":9,"n_cols":14,"rows_kept":9,"merged":[[3,0,4,0],[6,0,7,0]]}
["JULAI"]
["Jualan Dalam Talian",null,"ID Lelong","Perihalan item","Harga belian","Harga jualan","Yuran dalam talian","Yuran PayPal","Yuran kad kredit","Caj pengiriman","Yuran pengiriman","Untung/rugi jualan","Untung/rugi pengiriman","Jumlah untung/rugi"]
["Tahun",{"$nulls":11},{"$f":"JulySales[Caj pengiriman]-JulySales[Yuran pengiriman]","v":{"v":0,"d":"RM0.00"}},{"$f":"JulySales[Untung/rugi jualan]+JulySales[Untung/rugi pengiriman]","v":{"v":0,"d":"RM0.00"}}]
[{"$f":"SalesYear","v":2012},{"$nulls":11},{"$f":"JulySales[Caj pengiriman]-JulySales[Yuran pengiriman]","v":{"v":0,"d":"RM0.00"}},{"$f":"JulySales[Untung/rugi jualan]+JulySales[Untung/rugi pengiriman]","v":{"v":0,"d":"RM0.00"}}]
[{"$nulls":12},{"$f":"JulySales[Caj pengiriman]-JulySales[Yuran pengiriman]","v":{"v":0,"d":"RM0.00"}},{"$f":"JulySales[Untung/rugi jualan]+JulySales[Untung/rugi pengiriman]","v":{"v":0,"d":"RM0.00"}}]
["Jumlah Untung/Rugi",{"$nulls":11},{"$f":"JulySales[Caj pengiriman]-JulySales[Yuran pengiriman]","v":{"v":0,"d":"RM0.00"}},{"$f":"JulySales[Untung/rugi jualan]+JulySales[Untung/rugi pengiriman]","v":{"v":0,"d":"RM0.00"}}]
[{"$f":"JulySales[[#Totals],[Jumlah untung/rugi]]","v":{"v":0,"d":"$0.00"}},{"$nulls":11},{"$f":"JulySales[Caj pengiriman]-JulySales[Yuran pengiriman]","v":{"v":0,"d":"RM0.00"}},{"$f":"JulySales[Untung/rugi jualan]+JulySales[Untung/rugi pengiriman]","v":{"v":0,"d":"RM0.00"}}]
[null,null,"  Jumlah",{"$f":"\"Item Dijual: \"&SUBTOTAL(103,JulySales[Perihalan item])","v":"Item Dijual: 0"},{"$f":"SUBTOTAL(109,JulySales[Harga belian])","v":{"v":0,"d":"RM0.00"}},{"$f":"SUBTOTAL(109,JulySales[Harga jualan])","v":{"v":0,"d":"RM0.00"}},{"$f":"SUBTOTAL(109,JulySales[Yuran dalam talian])","v":{"v":0,"d":"RM0.00"}},{"$f":"SUBTOTAL(109,JulySales[Yuran PayPal])","v":{"v":0,"d":"RM0.00"}},{"$f":"SUBTOTAL(109,JulySales[Yuran kad kredit])","v":{"v":0,"d":"RM0.00"}},{"$f":"SUBTOTAL(109,JulySales[Caj pengiriman])","v":{"v":0,"d":"RM0.00"}},{"$f":"SUBTOTAL(109,JulySales[Yuran pengiriman])","v":{"v":0,"d":"RM0.00"}},{"$f":"SUBTOTAL(109,JulySales[Untung/rugi jualan])","v":{"v":0,"d":"RM0.00"}},{"$f":"SUBTOTAL(109,JulySales[Untung/rugi pengiriman])","v":{"v":0,"d":"RM0.00"}},{"$f":"SUBTOTAL(109,JulySales[Jumlah untung/rugi])","v":{"v":0,"d":"RM0.00"}}]
["Arah aliran untung/rugi"]

{"sheet":"Ogos","index":7,"n_rows":9,"n_cols":14,"rows_kept":9,"merged":[[3,0,4,0],[6,0,7,0]]}
["OGOS"]
["Jualan Dalam Talian",null,"ID Lelong","Perihalan item","Harga belian","Harga jualan","Yuran dalam talian","Yuran PayPal","Yuran kad kredit","Caj pengiriman","Yuran pengiriman","Untung/rugi jualan","Untung/rugi pengiriman","Jumlah untung/rugi"]
["Tahun",{"$nulls":11},{"$f":"AugustSales[Caj pengiriman]-AugustSales[Yuran pengiriman]","v":{"v":0,"d":"RM0.00"}},{"$f":"AugustSales[Untung/rugi jualan]+AugustSales[Untung/rugi pengiriman]","v":{"v":0,"d":"RM0.00"}}]
[{"$f":"SalesYear","v":2012},{"$nulls":11},{"$f":"AugustSales[Caj pengiriman]-AugustSales[Yuran pengiriman]","v":{"v":0,"d":"RM0.00"}},{"$f":"AugustSales[Untung/rugi jualan]+AugustSales[Untung/rugi pengiriman]","v":{"v":0,"d":"RM0.00"}}]
[{"$nulls":12},{"$f":"AugustSales[Caj pengiriman]-AugustSales[Yuran pengiriman]","v":{"v":0,"d":"RM0.00"}},{"$f":"AugustSales[Untung/rugi jualan]+AugustSales[Untung/rugi pengiriman]","v":{"v":0,"d":"RM0.00"}}]
["Jumlah Untung/Rugi",{"$nulls":11},{"$f":"AugustSales[Caj pengiriman]-AugustSales[Yuran pengiriman]","v":{"v":0,"d":"RM0.00"}},{"$f":"AugustSales[Untung/rugi jualan]+AugustSales[Untung/rugi pengiriman]","v":{"v":0,"d":"RM0.00"}}]
[{"$f":"AugustSales[[#Totals],[Jumlah untung/rugi]]","v":{"v":0,"d":"$0.00"}},{"$nulls":11},{"$f":"AugustSales[Caj pengiriman]-AugustSales[Yuran pengiriman]","v":{"v":0,"d":"RM0.00"}},{"$f":"AugustSales[Untung/rugi jualan]+AugustSales[Untung/rugi pengiriman]","v":{"v":0,"d":"RM0.00"}}]
[null,null,"  Jumlah",{"$f":"\"Item Dijual: \"&SUBTOTAL(103,AugustSales[Perihalan item])","v":"Item Dijual: 0"},{"$f":"SUBTOTAL(109,AugustSales[Harga belian])","v":{"v":0,"d":"RM0.00"}},{"$f":"SUBTOTAL(109,AugustSales[Harga jualan])","v":{"v":0,"d":"RM0.00"}},{"$f":"SUBTOTAL(109,AugustSales[Yuran dalam talian])","v":{"v":0,"d":"RM0.00"}},{"$f":"SUBTOTAL(109,AugustSales[Yuran PayPal])","v":{"v":0,"d":"RM0.00"}},{"$f":"SUBTOTAL(109,AugustSales[Yuran kad kredit])","v":{"v":0,"d":"RM0.00"}},{"$f":"SUBTOTAL(109,AugustSales[Caj pengiriman])","v":{"v":0,"d":"RM0.00"}},{"$f":"SUBTOTAL(109,AugustSales[Yuran pengiriman])","v":{"v":0,"d":"RM0.00"}},{"$f":"SUBTOTAL(109,AugustSales[Untung/rugi jualan])","v":{"v":0,"d":"RM0.00"}},{"$f":"SUBTOTAL(109,AugustSales[Untung/rugi pengiriman])","v":{"v":0,"d":"RM0.00"}},{"$f":"SUBTOTAL(109,AugustSales[Jumlah untung/rugi])","v":{"v":0,"d":"RM0.00"}}]
["Arah aliran untung/rugi"]

{"sheet":"September","index":8,"n_rows":9,"n_cols":14,"rows_kept":9,"merged":[[3,0,4,0],[6,0,7,0]]}
["SEPTEMBER"]
["Jualan Dalam Talian",null,"ID Lelong","Perihalan item","Harga belian","Harga jualan","Yuran dalam talian","Yuran PayPal","Yuran kad kredit","Caj pengiriman","Yuran pengiriman","Untung/rugi jualan","Untung/rugi pengiriman","Jumlah untung/rugi"]
["Tahun",{"$nulls":11},{"$f":"SeptemberSales[Caj pengiriman]-SeptemberSales[Yuran pengiriman]","v":{"v":0,"d":"RM0.00"}},{"$f":"SeptemberSales[Untung/rugi jualan]+SeptemberSales[Untung/rugi pengiriman]","v":{"v":0,"d":"RM0.00"}}]
[{"$f":"SalesYear","v":2012},{"$nulls":11},{"$f":"SeptemberSales[Caj pengiriman]-SeptemberSales[Yuran pengiriman]","v":{"v":0,"d":"RM0.00"}},{"$f":"SeptemberSales[Untung/rugi jualan]+SeptemberSales[Untung/rugi pengiriman]","v":{"v":0,"d":"RM0.00"}}]
[{"$nulls":12},{"$f":"SeptemberSales[Caj pengiriman]-SeptemberSales[Yuran pengiriman]","v":{"v":0,"d":"RM0.00"}},{"$f":"SeptemberSales[Untung/rugi jualan]+SeptemberSales[Untung/rugi pengiriman]","v":{"v":0,"d":"RM0.00"}}]
["Jumlah Untung/Rugi",{"$nulls":11},{"$f":"SeptemberSales[Caj pengiriman]-SeptemberSales[Yuran pengiriman]","v":{"v":0,"d":"RM0.00"}},{"$f":"SeptemberSales[Untung/rugi jualan]+SeptemberSales[Untung/rugi pengiriman]","v":{"v":0,"d":"RM0.00"}}]
[{"$f":"SeptemberSales[[#Totals],[Jumlah untung/rugi]]","v":{"v":0,"d":"$0.00"}},{"$nulls":11},{"$f":"SeptemberSales[Caj pengiriman]-SeptemberSales[Yuran pengiriman]","v":{"v":0,"d":"RM0.00"}},{"$f":"SeptemberSales[Untung/rugi jualan]+SeptemberSales[Untung/rugi pengiriman]","v":{"v":0,"d":"RM0.00"}}]
[null,null,"  Jumlah",{"$f":"\"Item Dijual: \"&SUBTOTAL(103,SeptemberSales[Perihalan item])","v":"Item Dijual: 0"},{"$f":"SUBTOTAL(109,SeptemberSales[Harga belian])","v":{"v":0,"d":"RM0.00"}},{"$f":"SUBTOTAL(109,SeptemberSales[Harga jualan])","v":{"v":0,"d":"RM0.00"}},{"$f":"SUBTOTAL(109,SeptemberSales[Yuran dalam talian])","v":{"v":0,"d":"RM0.00"}},{"$f":"SUBTOTAL(109,SeptemberSales[Yuran PayPal])","v":{"v":0,"d":"RM0.00"}},{"$f":"SUBTOTAL(109,SeptemberSales[Yuran kad kredit])","v":{"v":0,"d":"RM0.00"}},{"$f":"SUBTOTAL(109,SeptemberSales[Caj pengiriman])","v":{"v":0,"d":"RM0.00"}},{"$f":"SUBTOTAL(109,SeptemberSales[Yuran pengiriman])","v":{"v":0,"d":"RM0.00"}},{"$f":"SUBTOTAL(109,SeptemberSales[Untung/rugi jualan])","v":{"v":0,"d":"RM0.00"}},{"$f":"SUBTOTAL(109,SeptemberSales[Untung/rugi pengiriman])","v":{"v":0,"d":"RM0.00"}},{"$f":"SUBTOTAL(109,SeptemberSales[Jumlah untung/rugi])","v":{"v":0,"d":"RM0.00"}}]
["Arah aliran untung/rugi"]

{"sheet":"Oktober","index":9,"n_rows":9,"n_cols":14,"rows_kept":9,"merged":[[3,0,4,0],[6,0,7,0]]}
["OKTOBER"]
["Jualan Dalam Talian",null,"ID Lelong","Perihalan item","Harga belian","Harga jualan","Yuran dalam talian","Yuran PayPal","Yuran kad kredit","Caj pengiriman","Yuran pengiriman","Untung/rugi jualan","Untung/rugi pengiriman","Jumlah untung/rugi"]
["Tahun",{"$nulls":11},{"$f":"OctoberSales[Caj pengiriman]-OctoberSales[Yuran pengiriman]","v":{"v":0,"d":"RM0.00"}},{"$f":"OctoberSales[Untung/rugi jualan]+OctoberSales[Untung/rugi pengiriman]","v":{"v":0,"d":"RM0.00"}}]
[{"$f":"SalesYear","v":2012},{"$nulls":11},{"$f":"OctoberSales[Caj pengiriman]-OctoberSales[Yuran pengiriman]","v":{"v":0,"d":"RM0.00"}},{"$f":"OctoberSales[Untung/rugi jualan]+OctoberSales[Untung/rugi pengiriman]","v":{"v":0,"d":"RM0.00"}}]
[{"$nulls":12},{"$f":"OctoberSales[Caj pengiriman]-OctoberSales[Yuran pengiriman]","v":{"v":0,"d":"RM0.00"}},{"$f":"OctoberSales[Untung/rugi jualan]+OctoberSales[Untung/rugi pengiriman]","v":{"v":0,"d":"RM0.00"}}]
["Jumlah Untung/Rugi",{"$nulls":11},{"$f":"OctoberSales[Caj pengiriman]-OctoberSales[Yuran pengiriman]","v":{"v":0,"d":"RM0.00"}},{"$f":"OctoberSales[Untung/rugi jualan]+OctoberSales[Untung/rugi pengiriman]","v":{"v":0,"d":"RM0.00"}}]
[{"$f":"OctoberSales[[#Totals],[Jumlah untung/rugi]]","v":{"v":0,"d":"$0.00"}},{"$nulls":11},{"$f":"OctoberSales[Caj pengiriman]-OctoberSales[Yuran pengiriman]","v":{"v":0,"d":"RM0.00"}},{"$f":"OctoberSales[Untung/rugi jualan]+OctoberSales[Untung/rugi pengiriman]","v":{"v":0,"d":"RM0.00"}}]
[null,null,"  Jumlah",{"$f":"\"Item Dijual: \"&SUBTOTAL(103,OctoberSales[Perihalan item])","v":"Item Dijual: 0"},{"$f":"SUBTOTAL(109,OctoberSales[Harga belian])","v":{"v":0,"d":"RM0.00"}},{"$f":"SUBTOTAL(109,OctoberSales[Harga jualan])","v":{"v":0,"d":"RM0.00"}},{"$f":"SUBTOTAL(109,OctoberSales[Yuran dalam talian])","v":{"v":0,"d":"RM0.00"}},{"$f":"SUBTOTAL(109,OctoberSales[Yuran PayPal])","v":{"v":0,"d":"RM0.00"}},{"$f":"SUBTOTAL(109,OctoberSales[Yuran kad kredit])","v":{"v":0,"d":"RM0.00"}},{"$f":"SUBTOTAL(109,OctoberSales[Caj pengiriman])","v":{"v":0,"d":"RM0.00"}},{"$f":"SUBTOTAL(109,OctoberSales[Yuran pengiriman])","v":{"v":0,"d":"RM0.00"}},{"$f":"SUBTOTAL(109,OctoberSales[Untung/rugi jualan])","v":{"v":0,"d":"RM0.00"}},{"$f":"SUBTOTAL(109,OctoberSales[Untung/rugi pengiriman])","v":{"v":0,"d":"RM0.00"}},{"$f":"SUBTOTAL(109,OctoberSales[Jumlah untung/rugi])","v":{"v":0,"d":"RM0.00"}}]
["Arah aliran untung/rugi"]

{"sheet":"November","index":10,"n_rows":9,"n_cols":14,"rows_kept":9,"merged":[[3,0,4,0],[6,0,7,0]]}
["NOVEMBER"]
["Jualan Dalam Talian",null,"ID Lelong","Perihalan item","Harga belian","Harga jualan","Yuran dalam talian","Yuran PayPal","Yuran kad kredit","Caj pengiriman","Yuran pengiriman","Untung/rugi jualan","Untung/rugi pengiriman","Jumlah untung/rugi"]
["Tahun",{"$nulls":11},{"$f":"NovemberSales[Caj pengiriman]-NovemberSales[Yuran pengiriman]","v":{"v":0,"d":"RM0.00"}},{"$f":"NovemberSales[Untung/rugi jualan]+NovemberSales[Untung/rugi pengiriman]","v":{"v":0,"d":"RM0.00"}}]
[{"$f":"SalesYear","v":2012},{"$nulls":11},{"$f":"NovemberSales[Caj pengiriman]-NovemberSales[Yuran pengiriman]","v":{"v":0,"d":"RM0.00"}},{"$f":"NovemberSales[Untung/rugi jualan]+NovemberSales[Untung/rugi pengiriman]","v":{"v":0,"d":"RM0.00"}}]
[{"$nulls":12},{"$f":"NovemberSales[Caj pengiriman]-NovemberSales[Yuran pengiriman]","v":{"v":0,"d":"RM0.00"}},{"$f":"NovemberSales[Untung/rugi jualan]+NovemberSales[Untung/rugi pengiriman]","v":{"v":0,"d":"RM0.00"}}]
["Jumlah Untung/Rugi",{"$nulls":11},{"$f":"NovemberSales[Caj pengiriman]-NovemberSales[Yuran pengiriman]","v":{"v":0,"d":"RM0.00"}},{"$f":"NovemberSales[Untung/rugi jualan]+NovemberSales[Untung/rugi pengiriman]","v":{"v":0,"d":"RM0.00"}}]
[{"$f":"NovemberSales[[#Totals],[Jumlah untung/rugi]]","v":{"v":0,"d":"$0.00"}},{"$nulls":11},{"$f":"NovemberSales[Caj pengiriman]-NovemberSales[Yuran pengiriman]","v":{"v":0,"d":"RM0.00"}},{"$f":"NovemberSales[Untung/rugi jualan]+NovemberSales[Untung/rugi pengiriman]","v":{"v":0,"d":"RM0.00"}}]
[null,null,"  Jumlah",{"$f":"\"Item Dijual: \"&SUBTOTAL(103,NovemberSales[Perihalan item])","v":"Item Dijual: 0"},{"$f":"SUBTOTAL(109,NovemberSales[Harga belian])","v":{"v":0,"d":"RM0.00"}},{"$f":"SUBTOTAL(109,NovemberSales[Harga jualan])","v":{"v":0,"d":"RM0.00"}},{"$f":"SUBTOTAL(109,NovemberSales[Yuran dalam talian])","v":{"v":0,"d":"RM0.00"}},{"$f":"SUBTOTAL(109,NovemberSales[Yuran PayPal])","v":{"v":0,"d":"RM0.00"}},{"$f":"SUBTOTAL(109,NovemberSales[Yuran kad kredit])","v":{"v":0,"d":"RM0.00"}},{"$f":"SUBTOTAL(109,NovemberSales[Caj pengiriman])","v":{"v":0,"d":"RM0.00"}},{"$f":"SUBTOTAL(109,NovemberSales[Yuran pengiriman])","v":{"v":0,"d":"RM0.00"}},{"$f":"SUBTOTAL(109,NovemberSales[Untung/rugi jualan])","v":{"v":0,"d":"RM0.00"}},{"$f":"SUBTOTAL(109,NovemberSales[Untung/rugi pengiriman])","v":{"v":0,"d":"RM0.00"}},{"$f":"SUBTOTAL(109,NovemberSales[Jumlah untung/rugi])","v":{"v":0,"d":"RM0.00"}}]
["Arah aliran untung/rugi"]

{"sheet":"Disember","index":11,"n_rows":9,"n_cols":14,"rows_kept":9,"merged":[[3,0,4,0],[6,0,7,0]]}
["DISEMBER"]
["Jualan Dalam Talian",null,"ID Lelong","Perihalan item","Harga belian","Harga jualan","Yuran dalam talian","Yuran PayPal","Yuran kad kredit","Caj pengiriman","Yuran pengiriman","Untung/rugi jualan","Untung/rugi pengiriman","Jumlah untung/rugi"]
["Tahun",{"$nulls":11},{"$f":"DecemberSales[Caj pengiriman]-DecemberSales[Yuran pengiriman]","v":{"v":0,"d":"RM0.00"}},{"$f":"DecemberSales[Untung/rugi jualan]+DecemberSales[Untung/rugi pengiriman]","v":{"v":0,"d":"RM0.00"}}]
[{"$f":"SalesYear","v":2012},{"$nulls":11},{"$f":"DecemberSales[Caj pengiriman]-DecemberSales[Yuran pengiriman]","v":{"v":0,"d":"RM0.00"}},{"$f":"DecemberSales[Untung/rugi jualan]+DecemberSales[Untung/rugi pengiriman]","v":{"v":0,"d":"RM0.00"}}]
[{"$nulls":12},{"$f":"DecemberSales[Caj pengiriman]-DecemberSales[Yuran pengiriman]","v":{"v":0,"d":"RM0.00"}},{"$f":"DecemberSales[Untung/rugi jualan]+DecemberSales[Untung/rugi pengiriman]","v":{"v":0,"d":"RM0.00"}}]
["Jumlah Untung/Rugi",{"$nulls":11},{"$f":"DecemberSales[Caj pengiriman]-DecemberSales[Yuran pengiriman]","v":{"v":0,"d":"RM0.00"}},{"$f":"DecemberSales[Untung/rugi jualan]+DecemberSales[Untung/rugi pengiriman]","v":{"v":0,"d":"RM0.00"}}]
[{"$f":"DecemberSales[[#Totals],[Jumlah untung/rugi]]","v":{"v":0,"d":"$0.00"}},{"$nulls":11},{"$f":"DecemberSales[Caj pengiriman]-DecemberSales[Yuran pengiriman]","v":{"v":0,"d":"RM0.00"}},{"$f":"DecemberSales[Untung/rugi jualan]+DecemberSales[Untung/rugi pengiriman]","v":{"v":0,"d":"RM0.00"}}]
[null,null," Jumlah",{"$f":"\"Item Dijual: \"&SUBTOTAL(103,DecemberSales[Perihalan item])","v":"Item Dijual: 0"},{"$f":"SUBTOTAL(109,DecemberSales[Harga belian])","v":{"v":0,"d":"RM0.00"}},{"$f":"SUBTOTAL(109,DecemberSales[Harga jualan])","v":{"v":0,"d":"RM0.00"}},{"$f":"SUBTOTAL(109,DecemberSales[Yuran dalam talian])","v":{"v":0,"d":"RM0.00"}},{"$f":"SUBTOTAL(109,DecemberSales[Yuran PayPal])","v":{"v":0,"d":"RM0.00"}},{"$f":"SUBTOTAL(109,DecemberSales[Yuran kad kredit])","v":{"v":0,"d":"RM0.00"}},{"$f":"SUBTOTAL(109,DecemberSales[Caj pengiriman])","v":{"v":0,"d":"RM0.00"}},{"$f":"SUBTOTAL(109,DecemberSales[Yuran pengiriman])","v":{"v":0,"d":"RM0.00"}},{"$f":"SUBTOTAL(109,DecemberSales[Untung/rugi jualan])","v":{"v":0,"d":"RM0.00"}},{"$f":"SUBTOTAL(109,DecemberSales[Untung/rugi pengiriman])","v":{"v":0,"d":"RM0.00"}},{"$f":"SUBTOTAL(109,DecemberSales[Jumlah untung/rugi])","v":{"v":0,"d":"RM0.00"}}]
["Arah aliran untung/rugi"]

{"sheet":"Ringkasan Tarikh Mula - Kini ","index":12,"n_rows":16,"n_cols":11,"rows_kept":16,"merged":[[3,0,4,0],[6,0,7,0]]}
["Ringkasan"]
["YTD",null,"Untung/Rugi",{"$nulls":4},"Untung/Rugi tarikh mula sehingga kini"]
["Tahun",{"$nulls":6},"Bulan","Untung/rugi jualan","Untung/rugi pengiriman","Jumlah untung/rugi"]
[{"$f":"SalesYear","v":2012},{"$nulls":6},"Januari",{"$f":"JanuarySales[[#Totals],[Untung/rugi jualan]]","v":{"v":79.5,"d":"RM79.50"}},{"$f":"JanuarySales[[#Totals],[Untung/rugi pengiriman]]","v":{"v":9.5,"d":"RM9.50"}},{"$f":"IF(AND(YTDSummary[[#This Row],[Untung/rugi jualan]]<>\"\",YTDSummary[[#This Row],[Untung/rugi pengiriman]]<>\"\"),YTDSummary[[#This Row],[Untung/rugi jualan]]+YTDSummary[[#This Row],[Untung/rugi pengiriman]],\"\")","v":{"v":89,"d":"RM89.00"}}]
[{"$nulls":7},"Februari",{"$f":"FebruarySales[[#Totals],[Untung/rugi jualan]]","v":{"v":212.3,"d":"RM212.30"}},{"$f":"FebruarySales[[#Totals],[Untung/rugi pengiriman]]","v":{"v":12.3,"d":"RM12.30"}},{"$f":"IF(AND(YTDSummary[[#This Row],[Untung/rugi jualan]]<>\"\",YTDSummary[[#This Row],[Untung/rugi pengiriman]]<>\"\"),YTDSummary[[#This Row],[Untung/rugi jualan]]+YTDSummary[[#This Row],[Untung/rugi pengiriman]],\"\")","v":{"v":224.60000000000002,"d":"RM224.60"}}]
["Arah Aliran Jualan Bulanan:",{"$nulls":6},"Mac",{"$f":"MarchSales[[#Totals],[Untung/rugi jualan]]","v":{"v":0,"d":"RM0.00"}},{"$f":"MarchSales[[#Totals],[Untung/rugi pengiriman]]","v":{"v":0,"d":"RM0.00"}},{"$f":"IF(AND(YTDSummary[[#This Row],[Untung/rugi jualan]]<>\"\",YTDSummary[[#This Row],[Untung/rugi pengiriman]]<>\"\"),YTDSummary[[#This Row],[Untung/rugi jualan]]+YTDSummary[[#This Row],[Untung/rugi pengiriman]],\"\")","v":{"v":0,"d":"RM0.00"}}]
[{"$nulls":7},"April",{"$f":"AprilSales[[#Totals],[Untung/rugi jualan]]","v":{"v":0,"d":"RM0.00"}},{"$f":"AprilSales[[#Totals],[Untung/rugi pengiriman]]","v":{"v":0,"d":"RM0.00"}},{"$f":"IF(AND(YTDSummary[[#This Row],[Untung/rugi jualan]]<>\"\",YTDSummary[[#This Row],[Untung/rugi pengiriman]]<>\"\"),YTDSummary[[#This Row],[Untung/rugi jualan]]+YTDSummary[[#This Row],[Untung/rugi pengiriman]],\"\")","v":{"v":0,"d":"RM0.00"}}]
[{"$nulls":7},"Mei",{"$f":"MaySales[[#Totals],[Untung/rugi jualan]]","v":{"v":0,"d":"RM0.00"}},{"$f":"MaySales[[#Totals],[Untung/rugi pengiriman]]","v":{"v":0,"d":"RM0.00"}},{"$f":"IF(AND(YTDSummary[[#This Row],[Untung/rugi jualan]]<>\"\",YTDSummary[[#This Row],[Untung/rugi pengiriman]]<>\"\"),YTDSummary[[#This Row],[Untung/rugi jualan]]+YTDSummary[[#This Row],[Untung/rugi pengiriman]],\"\")","v":{"v":0,"d":"RM0.00"}}]
[{"$nulls":7},"Jun",{"$f":"JuneSales[[#Totals],[Untung/rugi jualan]]","v":{"v":0,"d":"RM0.00"}},{"$f":"JuneSales[[#Totals],[Untung/rugi pengiriman]]","v":{"v":0,"d":"RM0.00"}},{"$f":"IF(AND(YTDSummary[[#This Row],[Untung/rugi jualan]]<>\"\",YTDSummary[[#This Row],[Untung/rugi pengiriman]]<>\"\"),YTDSummary[[#This Row],[Untung/rugi jualan]]+YTDSummary[[#This Row],[Untung/rugi pengiriman]],\"\")","v":{"v":0,"d":"RM0.00"}}]
[{"$nulls":7},"Julai",{"$f":"JulySales[[#Totals],[Untung/rugi jualan]]","v":{"v":0,"d":"RM0.00"}},{"$f":"JulySales[[#Totals],[Untung/rugi pengiriman]]","v":{"v":0,"d":"RM0.00"}},{"$f":"IF(AND(YTDSummary[[#This Row],[Untung/rugi jualan]]<>\"\",YTDSummary[[#This Row],[Untung/rugi pengiriman]]<>\"\"),YTDSummary[[#This Row],[Untung/rugi jualan]]+YTDSummary[[#This Row],[Untung/rugi pengiriman]],\"\")","v":{"v":0,"d":"RM0.00"}}]
[{"$nulls":7},"Ogos",{"$f":"AugustSales[[#Totals],[Untung/rugi jualan]]","v":{"v":0,"d":"RM0.00"}},{"$f":"AugustSales[[#Totals],[Untung/rugi pengiriman]]","v":{"v":0,"d":"RM0.00"}},{"$f":"IF(AND(YTDSummary[[#This Row],[Untung/rugi jualan]]<>\"\",YTDSummary[[#This Row],[Untung/rugi pengiriman]]<>\"\"),YTDSummary[[#This Row],[Untung/rugi jualan]]+YTDSummary[[#This Row],[Untung/rugi pengiriman]],\"\")","v":{"v":0,"d":"RM0.00"}}]
[{"$nulls":7},"September",{"$f":"SeptemberSales[[#Totals],[Untung/rugi jualan]]","v":{"v":0,"d":"RM0.00"}},{"$f":"SeptemberSales[[#Totals],[Untung/rugi pengiriman]]","v":{"v":0,"d":"RM0.00"}},{"$f":"IF(AND(YTDSummary[[#This Row],[Untung/rugi jualan]]<>\"\",YTDSummary[[#This Row],[Untung/rugi pengiriman]]<>\"\"),YTDSummary[[#This Row],[Untung/rugi jualan]]+YTDSummary[[#This Row],[Untung/rugi pengiriman]],\"\")","v":{"v":0,"d":"RM0.00"}}]
[{"$nulls":7},"Oktober",{"$f":"OctoberSales[[#Totals],[Untung/rugi jualan]]","v":{"v":0,"d":"RM0.00"}},{"$f":"OctoberSales[[#Totals],[Untung/rugi pengiriman]]","v":{"v":0,"d":"RM0.00"}},{"$f":"IF(AND(YTDSummary[[#This Row],[Untung/rugi jualan]]<>\"\",YTDSummary[[#This Row],[Untung/rugi pengiriman]]<>\"\"),YTDSummary[[#This Row],[Untung/rugi jualan]]+YTDSummary[[#This Row],[Untung/rugi pengiriman]],\"\")","v":{"v":0,"d":"RM0.00"}}]
[{"$nulls":7},"November",{"$f":"NovemberSales[[#Totals],[Untung/rugi jualan]]","v":{"v":0,"d":"RM0.00"}},{"$f":"NovemberSales[[#Totals],[Untung/rugi pengiriman]]","v":{"v":0,"d":"RM0.00"}},{"$f":"IF(AND(YTDSummary[[#This Row],[Untung/rugi jualan]]<>\"\",YTDSummary[[#This Row],[Untung/rugi pengiriman]]<>\"\"),YTDSummary[[#This Row],[Untung/rugi jualan]]+YTDSummary[[#This Row],[Untung/rugi pengiriman]],\"\")","v":{"v":0,"d":"RM0.00"}}]
[{"$nulls":7},"Disember",{"$f":"DecemberSales[[#Totals],[Untung/rugi jualan]]","v":{"v":0,"d":"RM0.00"}},{"$f":"DecemberSales[[#Totals],[Untung/rugi pengiriman]]","v":{"v":0,"d":"RM0.00"}},{"$f":"IF(AND(YTDSummary[[#This Row],[Untung/rugi jualan]]<>\"\",YTDSummary[[#This Row],[Untung/rugi pengiriman]]<>\"\"),YTDSummary[[#This Row],[Untung/rugi jualan]]+YTDSummary[[#This Row],[Untung/rugi pengiriman]],\"\")","v":{"v":0,"d":"RM0.00"}}]
[{"$nulls":7},"Jumlah",{"$f":"SUBTOTAL(109,YTDSummary[Untung/rugi jualan])","v":{"v":291.8,"d":"RM291.80"}},{"$f":"SUBTOTAL(109,YTDSummary[Untung/rugi pengiriman])","v":{"v":21.8,"d":"RM21.80"}},{"$f":"SUBTOTAL(109,YTDSummary[Jumlah untung/rugi])","v":{"v":313.6,"d":"RM313.60"}}]